fUSD/lending_fUSD_20250616
["ID","MTS","AMOUNT","RATE_DAILY","PERIOD"]
[366073229,1750050646991,-2747.94,0.00016438,2]
[366073231,1750050647001,-1976.51,0.00016438,2]
[366073233,1750050647011,-436.78339264,0.00016438,2]
[366073235,1750050647020,-490.0,0.00016438,2]
[366073237,1750050647030,-992.35,0.00016438,2]
[366073239,1750050647039,-1356.85,0.00016438,2]
[366073241,1750050647050,-3915.7,0.00016438,2]
[366073243,1750050647060,-490.0,0.00016438,2]
[366073245,1750050647070,-521.49,0.00016438,2]
[366073247,1750050647079,-490.0,0.00016438,2]
[366073249,1750050647089,-538.27,0.00016438,2]
[366073251,1750050647099,-600.63,0.00016438,2]
[366073254,1750050647112,-633.79,0.00016438,2]
[366073256,1750050647122,-699.01,0.00016438,2]
[366073258,1750050647132,-2370.49,0.00016438,2]
[366073260,1750050647142,-2631.75,0.00016438,2]
[366073262,1750050647152,-151.0,0.00016438,2]
[366073264,1750050647161,-513.85,0.00016438,2]
[366073266,1750050647171,-199.837897,0.00016438,2]
[366073268,1750050647181,-151.0,0.00016438,2]
[366073270,1750050647191,-6327.52,0.00016438,2]
[366073272,1750050647201,-490.0,0.00016438,2]
[366073274,1750050647211,-11010.27,0.00016438,2]
[366073276,1750050647220,-490.0,0.00016438,2]
[366073278,1750050647229,-150.0,0.00016438,2]
[366073280,1750050647239,-497.54,0.00016438,2]
[366073282,1750050647249,-1116.02,0.00016438,2]
[366073284,1750050647259,-2940.25,0.00016438,2]
[366073286,1750050647268,-151.0,0.00016438,2]
[366073288,1750050647278,-490.0,0.00016438,2]
[366073290,1750050647289,-151.0,0.00016438,2]
[366073292,1750050647298,-501.36,0.00016438,2]
[366073294,1750050647309,-500.0,0.00016438,2]
[366073296,1750050647318,-4176.96,0.00016438,2]
[366073298,1750050647329,-490.0,0.00016438,2]
[366073300,1750050647339,-500.0,0.00016438,2]
[366073302,1750050647349,-526.05,0.00016438,2]
[366073304,1750050647358,-1578.26,0.00016438,2]
[366073306,1750050647368,-490.0,0.00016438,2]
[366073308,1750050647378,-2097.37,0.00016438,2]
[366073310,1750050647387,-8874.58,0.00016438,2]
[366073312,1750050647397,-153.538623,0.00016438,2]
[366073314,1750050647407,-150.0,0.00016438,2]
[366073317,1750050647416,-490.0,0.00016438,2]
[366073319,1750050647426,-150.96623907,0.00016438,2]
[366073321,1750050647436,-654.33,0.00016438,2]
[366073323,1750050647446,-507.69793493,0.00016438,2]
[366073325,1750050647455,-4869.12,0.00016438,2]
[366073327,1750050647464,-490.0,0.00016438,2]
[366073329,1750050647474,-2443.77,0.00016438,2]
[366073331,1750050647483,-490.0,0.00016438,2]
[366073333,1750050647492,-490.0,0.00016438,2]
[366073335,1750050647502,-1722.32,0.00016438,2]
[366073337,1750050647512,-1232.89,0.00016438,2]
[366073339,1750050647521,-490.0,0.00016438,2]
[366073341,1750050647530,-2552.81,0.00016438,2]
[366073343,1750050647540,-220.569412,0.00016438,2]
[366073345,1750050647550,-220.569412,0.00016438,2]
[366073347,1750050647559,-1892.34,0.00016438,2]
[366073349,1750050647569,-919.94,0.00016438,2]
[366073351,1750050647579,-490.0,0.00016438,2]
[366073353,1750050647589,-1396.73,0.00016438,2]
[366073355,1750050647599,-490.0,0.00016438,2]
[366073357,1750050647610,-220.569412,0.00016438,2]
[366073359,1750050647620,-220.569412,0.00016438,2]
[366073361,1750050647630,-2321.77,0.00016438,2]
[366073363,1750050647640,-919.08,0.00016438,2]
[366073365,1750050647650,-1310.4,0.00016438,2]
[366073367,1750050647660,-500.0,0.00016438,2]
[366073369,1750050647669,-500.0,0.00016438,2]
[366073371,1750050647679,-500.0,0.00016438,2]
[366073373,1750050647689,-511.96,0.00016438,2]
[366073385,1750050647794,-500.0,0.00016438,2]
[366073387,1750050647804,-500.0,0.00016438,2]
[366073389,1750050647815,-1202.72,0.00016438,2]
[366073391,1750050647824,-1380.97,0.00016438,2]
[366073393,1750050647833,-2012.61,0.00016438,2]
[366073395,1750050647842,-490.0,0.00016438,2]
[366073397,1750050647851,-842.55,0.00016438,2]
[366073399,1750050647861,-901.05,0.00016438,2]
[366073401,1750050647870,-3092.59,0.00016438,2]
[366073403,1750050647880,-151.0,0.00016438,2]
[366073405,1750050647894,-490.0,0.00016438,2]
[366073407,1750050647904,-151.0,0.00016438,2]
[366073409,1750050647914,-2866.79,0.00016438,2]
[366073411,1750050647923,-513.07576529,0.00016438,2]
[366073413,1750050647932,-151.0,0.00016438,2]
[366073414,1750050647942,-490.0,0.00016438,2]
[366073417,1750050647951,-2068.1,0.00016438,2]
[366073418,1750050647961,-490.0,0.00016438,2]
[366073420,1750050647971,-2595.64,0.00016438,2]
[366073422,1750050647981,-495.97213732,0.00016438,2]
[366073424,1750050647991,-1418.22,0.00016438,2]
[366073426,1750050648000,-1017.75,0.00016438,2]
[366073428,1750050648010,-4069.9,0.00016438,2]
[366073430,1750050648019,-1331.84,0.00016438,2]
[366073432,1750050648029,-570.06,0.00016438,2]
[366073434,1750050648039,-495.14018756,0.00016438,2]
[366073436,1750050648049,-1892.5,0.00016438,2]
[366073438,1750050648059,-490.0,0.00016438,2]
[366073440,1750050648069,-1438.24,0.00016438,2]
[366073442,1750050648078,-490.0,0.00016438,2]
[366073444,1750050648088,-2066.04,0.00016438,2]
[366073447,1750050648098,-490.0,0.00016438,2]
[366073449,1750050648109,-1870.27,0.00016438,2]
[366073451,1750050648118,-1150.56,0.00016438,2]
[366073453,1750050648128,-490.0,0.00016438,2]
[366073455,1750050648137,-2533.91,0.00016438,2]
[366073457,1750050648146,-490.0,0.00016438,2]
[366073458,1750050648156,-891.04,0.00016438,2]
[366073460,1750050648165,-150.0,0.00016438,2]
[366073462,1750050648175,-1052.5,0.00016438,2]
[366073464,1750050648184,-6442.14,0.00016438,2]
[366073466,1750050648194,-150.0,0.00016438,2]
[366073468,1750050648203,-490.0,0.00016438,2]
[366073470,1750050648213,-627.79,0.00016438,2]
[366073472,1750050648223,-151.0,0.00016438,2]
[366073474,1750050648233,-150.53226489,0.00016438,2]
[366073476,1750050648243,-151.445888,0.00016438,2]
[366073478,1750050648252,-151.0,0.00016438,2]
[366073480,1750050648261,-151.0,0.00016438,2]
[366073482,1750050648270,-151.0,0.00016438,2]
[366073484,1750050648280,-150.0,0.00016438,2]
[366073487,1750050648290,-490.0,0.00016438,2]
[366073489,1750050648300,-10732.31,0.00016438,2]
[366073490,1750050648309,-151.36736868,0.00016438,2]
[366073493,1750050648319,-1838.83,0.00016438,2]
[366073495,1750050648328,-490.0,0.00016438,2]
[366073497,1750050648338,-3601.56,0.00016438,2]
[366073498,1750050648347,-151.0,0.00016438,2]
[366073500,1750050648356,-151.0,0.00016438,2]
[366073502,1750050648366,-151.0,0.00016438,2]
[366073504,1750050648375,-151.0,0.00016438,2]
[366073506,1750050648384,-490.0,0.00016438,2]
[366073508,1750050648394,-566.99,0.00016438,2]
[366073510,1750050648403,-1927.17,0.00016438,2]
[366073512,1750050648413,-2074.41,0.00016438,2]
[366073514,1750050648422,-150.0,0.00016438,2]
[366073516,1750050648431,-7701.94,0.00016438,2]
[366073518,1750050648441,-322.96015572,0.00016438,2]
[366073520,1750050648451,-2224.66,0.00016438,2]
[366073522,1750050648460,-150.0,0.00016438,2]
[366073524,1750050648470,-2598.83,0.00016438,2]
[366073526,1750050648479,-1085.14,0.00016438,2]
[366073528,1750050648489,-4177.12,0.00016438,2]
[366073530,1750050648499,-1387.96,0.00016438,2]
[366073532,1750050648508,-644.54,0.00016438,2]
[366073534,1750050648518,-12298.08,0.00016438,2]
[366073536,1750050648528,-1897.46,0.00016438,2]
[366073538,1750050648538,-151.656887,0.00016438,2]
[366073540,1750050648548,-1192.68,0.00016438,2]
[366073542,1750050648557,-1300.72,0.00016438,2]
[366073544,1750050648568,-1471.9,0.00016438,2]
[366073546,1750050648578,-490.0,0.00016438,2]
[366073548,1750050648588,-1372.67,0.00016438,2]
[366073550,1750050648598,-211.37204422,0.00016438,2]
[366073552,1750050648608,-2253.89,0.00016438,2]
[366073554,1750050648618,-4998.12,0.00016438,2]
[366073556,1750050648628,-502.02,0.00016438,2]
[366073558,1750050648638,-1274.32,0.00016438,2]
[366073559,1750050648648,-501.88,0.00016438,2]
[366073560,1750050648658,-501.88,0.00016438,2]
[366073561,1750050648668,-501.88,0.00016438,2]
[366073562,1750050648677,-501.88,0.00016438,2]
[366073563,1750050648687,-501.88,0.00016438,2]
[366073564,1750050648696,-490.0,0.00016438,2]
[366073565,1750050648707,-551.47,0.00016438,2]
[366073566,1750050648717,-490.0,0.00016438,2]
[366073567,1750050648727,-3619.39,0.00016438,2]
[366073568,1750050648738,-496.45697289,0.00016438,2]
[366073569,1750050648747,-7870.53,0.00016438,2]
[366073570,1750050648758,-292.44622,0.00016438,2]
[366073571,1750050648767,-1391.31,0.00016438,2]
[366073572,1750050648777,-490.0,0.00016438,2]
[366073573,1750050648786,-490.0,0.00016438,2]
[366073574,1750050648796,-292.44622,0.00016438,2]
[366073575,1750050648806,-3861.95,0.00016438,2]
[366073576,1750050648816,-490.0,0.00016438,2]
[366073577,1750050648826,-292.44622,0.00016438,2]
[366073578,1750050648836,-899.19,0.00016438,2]
[366073579,1750050648845,-898.72,0.00016438,2]
[366073580,1750050648855,-825.54,0.00016438,2]
[366073581,1750050648865,-292.44622,0.00016438,2]
[366073582,1750050648875,-292.44622,0.00016438,2]
[366073583,1750050648887,-292.44622,0.00016438,2]
[366073584,1750050648896,-5152.51,0.00016438,2]
[366073585,1750050648906,-699.91,0.00016438,2]
[366073586,1750050648915,-1489.38,0.00016438,2]
[366073587,1750050648924,-837.86,0.00016438,2]
[366073588,1750050648935,-490.0,0.00016438,2]
[366073589,1750050648945,-1112.46,0.00016438,2]
[366073590,1750050648955,-490.0,0.00016438,2]
[366073591,1750050648966,-490.0,0.00016438,2]
[366073592,1750050648977,-1627.94,0.00016438,2]
[366073593,1750050648986,-2062.4,0.00016438,2]
[366073594,1750050648997,-250.0,0.00016438,2]
[366073595,1750050649007,-365.04704999,0.00016438,2]
[366073596,1750050649016,-490.0,0.00016438,2]
[366073597,1750050649025,-1530.87,0.00016438,2]
[366073598,1750050649035,-2165.0,0.00016438,2]
[366073599,1750050649045,-2866.15,0.00016438,2]
[366073600,1750050649054,-151.0,0.00016438,2]
[366073601,1750050649064,-152.371749,0.00016438,2]
[366073602,1750050649074,-1064.04,0.00016438,2]
[366073603,1750050649084,-1602.19,0.00016438,2]
[366073604,1750050649095,-981.39,0.00016438,2]
[366073605,1750050649105,-1015.34,0.00016438,2]
[366073606,1750050649115,-1181.05,0.00016438,2]
[366073607,1750050649125,-200.0,0.00016438,2]
[366073608,1750050649134,-2815.08,0.00016438,2]
[366073609,1750050649143,-4830.77,0.00016438,2]
[366073610,1750050649154,-243.742684,0.00016438,2]
[366073611,1750050649163,-243.742684,0.00016438,2]
[366073612,1750050649173,-490.0,0.00016438,2]
[366073613,1750050649183,-243.742684,0.00016438,2]
[366073614,1750050649193,-150.0,0.00016438,2]
[366073615,1750050649202,-1484.94,0.00016438,2]
[366073616,1750050649212,-243.742684,0.00016438,2]
[366073617,1750050649221,-150.0,0.00016438,2]
[366073618,1750050649231,-908.96,0.00016438,2]
[366073619,1750050649240,-243.742684,0.00016438,2]
[366073620,1750050649249,-243.742684,0.00016438,2]
[366073621,1750050649259,-1520.19,0.00016438,2]
[366073622,1750050649269,-151.04768963,0.00016438,2]
[366073623,1750050649278,-4343.41,0.00016438,2]
[366073624,1750050649288,-150.0,0.00016438,2]
[366073625,1750050649298,-4518.67,0.00016438,2]
[366073626,1750050649309,-150.0,0.00016438,2]
[366073627,1750050649319,-490.0,0.00016438,2]
[366073628,1750050649328,-151.0,0.00016438,2]
[366073629,1750050649338,-150.0,0.00016438,2]
[366073630,1750050649347,-151.0,0.00016438,2]
[366073631,1750050649357,-19828.6,0.00016438,2]
[366073632,1750050649366,-2453.03,0.00016438,2]
[366073633,1750050649377,-151.0,0.00016438,2]
[366073634,1750050649386,-215.86370102,0.00016438,2]
[366073635,1750050649395,-1444.72,0.00016438,2]
[366073636,1750050649404,-151.0,0.00016438,2]
[366073637,1750050649414,-150.0,0.00016438,2]
[366073638,1750050649423,-490.0,0.00016438,2]
[366073639,1750050649433,-988.1,0.00016438,2]
[366073640,1750050649443,-1615.21,0.00016438,2]
[366073641,1750050649452,-490.0,0.00016438,2]
[366073642,1750050649462,-440.0,0.00016438,2]
[366073643,1750050649472,-22668.47,0.00016438,2]
[366073644,1750050649482,-490.0,0.00016438,2]
[366073645,1750050649492,-1017.54,0.00016438,2]
[366073646,1750050649502,-1063.85,0.00016438,2]
[366073647,1750050649511,-1744.4,0.00016438,2]
[366073648,1750050649521,-1326.57,0.00016438,2]
[366073649,1750050649531,-166.0,0.00016438,2]
[366073650,1750050649541,-490.0,0.00016438,2]
[366073651,1750050649551,-5188.61,0.00016438,2]
[366073652,1750050649562,-166.0,0.00016438,2]
[366073653,1750050649571,-166.0,0.00016438,2]
[366073654,1750050649582,-556.46,0.00016438,2]
[366073655,1750050649591,-172.0,0.00016438,2]
[366073656,1750050649601,-166.0,0.00016438,2]
[366073657,1750050649610,-490.0,0.00016438,2]
[366073658,1750050649620,-1845.42,0.00016438,2]
[366073659,1750050649629,-154.46369147,0.00016438,2]
[366073660,1750050649639,-477.68011863,0.00016438,2]
[366073661,1750050649649,-1112.8,0.00016438,2]
[366073662,1750050649658,-4375.9,0.00016438,2]
[366073663,1750050649668,-1162.38,0.00016438,2]
[366073664,1750050649678,-150.0,0.00016438,2]
[366073665,1750050649687,-3333.0,0.00016439,2]
[366073666,1750050649697,-946.0,0.00016439,2]
[366073667,1750050649706,-151.362411,0.00016439,2]
[366073668,1750050649716,-151.362411,0.00016439,2]
[366073669,1750050649726,-151.0,0.00016439,2]
[366073670,1750050649736,-151.0,0.00016439,2]
[366073671,1750050649747,-151.0,0.00016439,2]
[366073672,1750050649756,-151.416514,0.00016439,2]
[366073673,1750050649766,-442.925765,0.00016439,2]
[366073674,1750050649776,-442.925765,0.00016439,2]
[366073675,1750050649785,-220.569412,0.00016439,2]
[366073676,1750050649794,-220.569412,0.00016439,2]
[366073677,1750050649804,-614.01624509,0.00016441,2]
[366073678,1750050649814,-1242.57684771,0.00016446,2]
[366073679,1750050649823,-150.0,0.00016448,2]
[366073680,1750050649834,-200.0,0.00016448,2]
[366073681,1750050649844,-803.0,0.00016449,2]
[366073682,1750050649854,-637.0,0.00016449,2]
[366073683,1750050649863,-1277.0,0.00016449,2]
[366073684,1750050649873,-592.635,0.00016449,2]
[366073685,1750050649886,-558.0,0.00016449,2]
[366073686,1750050649896,-928.0,0.00016449,2]
[366073687,1750050649906,-2003.0,0.00016449,2]
[366073688,1750050649915,-1674.0,0.00016449,2]
[366073689,1750050649926,-159.643284,0.00016449,2]
[366073690,1750050649935,-159.643284,0.00016449,2]
[366073691,1750050649945,-1160.0,0.00016451,2]
[366073692,1750050649954,-156.352,0.00016451,2]
[366073693,1750050649966,-4090.0,0.00016451,2]
[366073694,1750050649976,-7112.0,0.00016451,2]
[366073695,1750050649985,-854.0,0.00016451,2]
[366073696,1750050649994,-500.0,0.00016451,2]
[366073697,1750050650004,-5602.62034827,0.00016452,2]
[366073698,1750050650014,-500.0,0.00016453,2]
[366073699,1750050650023,-200.0,0.00016453,2]
[366073700,1750050650032,-500.0,0.00016455,2]
[366073701,1750050650042,-150.0,0.00016456,2]
[366073702,1750050650051,-500.0,0.00016456,2]
[366073703,1750050650061,-200.0,0.00016456,2]
[366073704,1750050650070,-150.0,0.00016463,2]
[366073705,1750050650080,-200.76193588,0.00016465,2]
[366073706,1750050650089,-150.0,0.00016465,2]
[366073707,1750050650099,-556.54858585,0.00016465,2]
[366073708,1750050650108,-500.0,0.00016465,2]
[366073709,1750050650118,-200.0,0.00016465,2]
[366073710,1750050650127,-150.0,0.00016465,2]
[366073711,1750050650137,-150.0,0.00016465,2]
[366073712,1750050650146,-150.0,0.00016465,2]
[366073713,1750050650156,-150.0,0.00016465,2]
[366073714,1750050650166,-202.95539089,0.00016465,2]
[366073715,1750050650175,-150.0,0.00016465,2]
[366073716,1750050650185,-150.0,0.00016465,2]
[366073717,1750050650194,-150.0,0.00016465,2]
[366073718,1750050650203,-150.0,0.00016465,2]
[366073719,1750050650213,-150.0,0.00016465,2]
[366073720,1750050650222,-8882.6885148,0.00016469,2]
[366073721,1750050650231,-150.0,0.00016469,2]
[366073722,1750050650241,-150.0,0.00016471,2]
[366073723,1750050650250,-500.0,0.00016473,2]
[366073724,1750050650260,-500.0,0.00016473,2]
[366073725,1750050650269,-501.51225792,0.00016473,2]
[366073726,1750050650279,-500.0,0.00016473,2]
[366073727,1750050650288,-500.46754569,0.00016473,2]
[366073728,1750050650297,-500.0,0.00016473,2]
[366073729,1750050650307,-500.0,0.00016473,2]
[366073730,1750050650317,-192.76272723,0.00016473,2]
[366073731,1750050650326,-1000.0,0.00016476,2]
[366073732,1750050650336,-150.0,0.00016477,2]
[366073733,1750050650345,-150.0,0.00016477,2]
[366073734,1750050650355,-500.0,0.00016478,2]
[366073735,1750050650364,-2643.551,0.0001648,2]
[366073736,1750050650373,-194.58963855,0.0001648,2]
[366073737,1750050650383,-5602.62034827,0.00016486,2]
[366073738,1750050650392,-150.0,0.00016487,2]
[366073739,1750050650402,-1000.0,0.00016489,2]
[366073740,1750050650411,-150.0,0.00016492,2]
[366073741,1750050650421,-200.0,0.00016493,2]
[366073742,1750050650430,-500.0,0.00016493,2]
[366073743,1750050650439,-150.0,0.00016493,2]
[366073744,1750050650448,-200.60586234,0.00016493,2]
[366073745,1750050650458,-205.71163978,0.00016493,2]
[366073746,1750050650467,-150.0,0.00016493,2]
[366073747,1750050650476,-201.31927875,0.00016493,2]
[366073748,1750050650486,-150.0,0.00016493,2]
[366073749,1750050650496,-202.07311355,0.00016493,2]
[366073750,1750050650505,-1000.0,0.00016493,2]
[366073751,1750050650515,-168.0,0.00016494,2]
[366073752,1750050650524,-3537.0,0.00016494,2]
[366073753,1750050650533,-614.01624509,0.00016497,2]
[366073754,1750050650543,-150.0,0.00016499,2]
[366073755,1750050650553,-308.298984,0.000165,2]
[366073756,1750050650564,-308.298984,0.000165,2]
[366073757,1750050650573,-241.423102,0.000165,2]
[366073758,1750050650583,-151.0,0.000165,2]
[366073759,1750050650592,-151.0,0.000165,2]
[366073760,1750050650601,-153.068112,0.000165,2]
[366073761,1750050650610,-151.0,0.000165,2]
[366073762,1750050650620,-500.0,0.000165,6]
[366073763,1750050650630,-151.0,0.000165,2]
[366073764,1750050650639,-151.0,0.000165,2]
[366073765,1750050650649,-151.0,0.000165,2]
[366073766,1750050650658,-1008.0,0.000165,2]
[366073767,1750050650667,-150.0,0.00016505,2]
[366073768,1750050650677,-150.0,0.00016508,2]
[366073769,1750050650686,-150.0,0.00016509,2]
[366073770,1750050650696,-1242.57684771,0.0001651,2]
[366073771,1750050650706,-150.0,0.00016512,2]
[366073772,1750050650716,-150.0,0.00016513,2]
[366073773,1750050650726,-150.0,0.00016516,2]
[366073774,1750050650735,-500.0,0.0001652,2]
[366073775,1750050650745,-201.47347771,0.0001652,2]
[366073776,1750050650754,-150.0,0.0001652,2]
[366073777,1750050650764,-150.0,0.0001652,2]
[366073778,1750050650773,-5602.62034827,0.00016521,2]
[366073779,1750050650782,-150.0,0.00016522,2]
[366073780,1750050650792,-150.0,0.00016523,2]
[366073781,1750050650802,-2196.56389676,0.00016524,2]
[366073782,1750050650813,-1018.75590239,0.00016524,2]
[366073783,1750050650822,-150.0,0.00016524,2]
[366073784,1750050650832,-150.0,0.00016525,2]
[366073785,1750050650842,-150.0,0.00016533,2]
[366073786,1750050650851,-150.0,0.00016536,2]
[366073787,1750050650860,-150.0,0.00016537,2]
[366073788,1750050650869,-500.0,0.00016548,2]
[366073789,1750050650879,-250.0,0.00016548,2]
[366073790,1750050650893,-213.71627124,0.00016548,2]
[366073791,1750050650903,-151.0,0.00016548,2]
[366073792,1750050650912,-151.0,0.00016548,2]
[366073793,1750050650922,-151.0,0.00016548,2]
[366073794,1750050650933,-792.792477,0.00016548,2]
[366073795,1750050650942,-792.792477,0.00016548,2]
[366073796,1750050650952,-150.0,0.00016548,2]
[366073797,1750050650962,-150.0,0.00016549,2]
[366073798,1750050650971,-150.0,0.00016552,2]
[366073799,1750050650981,-150.0,0.00016552,2]
[366073800,1750050650991,-614.01624509,0.00016553,2]
[366073801,1750050651000,-5602.62034827,0.00016555,2]
[366073802,1750050651009,-151.0,0.00016557,2]
[366073803,1750050651020,-151.0,0.00016557,2]
[366073804,1750050651030,-151.0,0.00016557,2]
[366073805,1750050651040,-225.721112,0.00016557,2]
[366073806,1750050651050,-225.721112,0.00016557,2]
[366073807,1750050651060,-151.0,0.00016557,2]
[366073808,1750050651070,-215.870497,0.00016557,2]
[366073809,1750050651080,-792.792477,0.00016557,2]
[366073810,1750050651089,-215.870497,0.00016557,2]
[366073811,1750050651098,-792.792477,0.00016557,2]
[366073812,1750050651108,-1185.300664,0.00016557,2]
[366073813,1750050651117,-1185.300664,0.00016557,2]
[366073814,1750050651127,-407.236363,0.00016557,2]
[366073815,1750050651136,-407.236363,0.00016557,2]
[366073816,1750050651146,-217.54809124,0.00016563,2]
[366073817,1750050651156,-500.0,0.00016563,2]
[366073818,1750050651165,-509.45012815,0.00016563,2]
[366073819,1750050651175,-206.81,0.00016563,2]
[366073820,1750050651184,-151.0,0.00016564,2]
[366073821,1750050651194,-151.0,0.00016564,2]
[366073822,1750050651203,-151.0,0.00016564,2]
[366073823,1750050651214,-151.0,0.00016564,2]
[366073824,1750050651224,-276.874637,0.00016564,2]
[366073825,1750050651233,-234.411313,0.00016564,2]
[366073826,1750050651243,-234.411313,0.00016564,2]
[366073827,1750050651253,-234.411313,0.00016564,2]
[366073828,1750050651262,-234.411313,0.00016564,2]
[366073829,1750050651273,-225.721112,0.00016564,2]
[366073830,1750050651283,-225.721112,0.00016564,2]
[366073831,1750050651293,-151.0,0.00016564,2]
[366073832,1750050651303,-239.266396,0.00016564,2]
[366073833,1750050651313,-239.266396,0.00016564,2]
[366073834,1750050651325,-239.266396,0.00016564,2]
[366073835,1750050651335,-239.266396,0.00016564,2]
[366073836,1750050651346,-308.298984,0.00016564,2]
[366073837,1750050651355,-215.870497,0.00016564,2]
[366073838,1750050651365,-792.792477,0.00016564,2]
[366073839,1750050651375,-308.298984,0.00016564,2]
[366073840,1750050651385,-215.870497,0.00016564,2]
[366073841,1750050651395,-792.792477,0.00016564,2]
[366073842,1750050651404,-151.0,0.00016564,2]
[366073843,1750050651414,-255.935891,0.00016564,2]
[366073844,1750050651423,-151.0,0.00016564,2]
[366073845,1750050651432,-1185.300664,0.00016564,2]
[366073846,1750050651442,-1185.300664,0.00016564,2]
[366073847,1750050651452,-407.236363,0.00016564,2]
[366073848,1750050651462,-407.236363,0.00016564,2]
[366073849,1750050651472,-151.0,0.00016564,2]
[366073850,1750050651483,-151.0,0.00016564,2]
[366073851,1750050651493,-151.0,0.00016564,2]
[366073852,1750050651503,-12971.3808562,0.00016564,2]
[366073853,1750050651513,-150.0,0.00016565,2]
[366073854,1750050651523,-150.0,0.00016568,2]
[366073855,1750050651533,-151.0,0.00016569,2]
[366073856,1750050651542,-151.0,0.00016569,2]
[366073857,1750050651552,-1378.480937,0.00016569,2]
[366073858,1750050651562,-470.002049,0.00016569,2]
[366073859,1750050651573,-470.002049,0.00016569,2]
[366073860,1750050651583,-720.026803,0.00016569,2]
[366073861,1750050651592,-720.026803,0.00016569,2]
[366073862,1750050651602,-151.0,0.00016569,2]
[366073863,1750050651611,-500.82280962,0.0001657,2]
[366073864,1750050651621,-1001.3699622,0.0001657,2]
[366073865,1750050651630,-152.409593,0.00016573,2]
[366073866,1750050651640,-151.505387,0.00016573,2]
[366073867,1750050651649,-159.858245,0.00016573,2]
[366073868,1750050651659,-159.858245,0.00016573,2]
[366073869,1750050651668,-240.475048,0.00016573,2]
[366073870,1750050651678,-240.475048,0.00016573,2]
[366073871,1750050651688,-151.0,0.00016573,2]
[366073872,1750050651697,-151.0,0.00016573,2]
[366073873,1750050651707,-151.0,0.00016573,2]
[366073874,1750050651716,-542.618918,0.00016573,2]
[366073875,1750050651726,-542.618918,0.00016573,2]
[366073876,1750050651736,-151.0,0.00016573,2]
[366073877,1750050651745,-277.194465,0.00016573,2]
[366073878,1750050651756,-277.194465,0.00016573,2]
[366073879,1750050651766,-151.0,0.00016573,2]
[366073880,1750050651775,-375.932254,0.00016573,2]
[366073881,1750050651785,-375.932254,0.00016573,2]
[366073882,1750050651794,-151.0,0.00016573,2]
[366073883,1750050651804,-151.0,0.00016573,2]
[366073884,1750050651814,-151.0,0.00016573,2]
[366073885,1750050651824,-151.0,0.00016573,2]
[366073886,1750050651835,-181.260532,0.00016573,2]
[366073887,1750050651844,-151.0,0.00016573,2]
[366073888,1750050651854,-314.67914,0.00016573,2]
[366073889,1750050651863,-314.67914,0.00016573,2]
[366073890,1750050651873,-184.311177,0.00016573,2]
[366073891,1750050651883,-184.311177,0.00016573,2]
[366073892,1750050651895,-201.001992,0.00016573,2]
[366073893,1750050651904,-201.001992,0.00016573,2]
[366073894,1750050651914,-169.722649,0.00016573,2]
[366073895,1750050651923,-151.0,0.00016573,2]
[366073896,1750050652072,-169.722649,0.00016573,2]
[366073897,1750050652083,-151.0,0.00016573,2]
[366073898,1750050652093,-151.0,0.00016573,2]